lending/lending_fUSD_20260310
["ID","MTS","AMOUNT","RATE_DAILY","PERIOD"]
[408079366,1773115846505,-4350.510175,0.00019726,2]
[408079367,1773115846515,-4350.510175,0.00019726,2]
[408079368,1773115846525,-1104.868282,0.00019726,2]
[408079369,1773115846535,-1104.868282,0.00019726,2]
[408079370,1773115846545,-151.0,0.00019726,2]
[408079371,1773115846554,-1104.868282,0.00019726,2]
[408079372,1773115846563,-1104.868282,0.00019726,2]
[408079373,1773115846573,-597.550008,0.00019726,2]
[408079374,1773115846582,-151.0,0.00019726,2]
[408079375,1773115846591,-597.550008,0.00019726,2]
[408079376,1773115846600,-151.0,0.00019726,2]
[408079377,1773115846610,-151.0,0.00019726,2]
[408079378,1773115846623,-597.550008,0.00019726,2]
[408079379,1773115846632,-151.0,0.00019726,2]
[408079380,1773115846641,-151.0,0.00019726,2]
[408079381,1773115846651,-597.550008,0.00019726,2]
[408079382,1773115846660,-232.832187,0.00019726,2]
[408079383,1773115846669,-151.0,0.00019726,2]
[408079384,1773115846679,-151.0,0.00019726,2]
[408079385,1773115846688,-151.0,0.00019726,2]
[408079386,1773115846698,-152.491587,0.00019726,2]
[408079387,1773115846707,-787.0,0.00019726,2]
[408079388,1773115846716,-1000.0,0.00019726,2]
[408079389,1773115846726,-1084.69968382,0.0001974,2]
[408079390,1773115846735,-195.00940316,0.00019747,2]
[408079391,1773115846744,-500.0,0.00019756,2]
[408079392,1773115846754,-500.0,0.00019756,2]
[408079393,1773115846763,-500.0,0.00019756,2]
[408079394,1773115846773,-500.0,0.00019756,2]
[408079395,1773115846783,-500.0,0.00019756,2]
[408079396,1773115846793,-342.12,0.00019756,2]
[408079397,1773115846804,-635.27,0.00019756,2]
[408079398,1773115846816,-150.0,0.00019757,2]
[408079399,1773115846825,-2383.0,0.00019757,2]
[408079400,1773115846835,-1773.94057638,0.00019757,2]
[408079524,1773116161333,9373.0,0.0002,120]
[408079527,1773116286454,70500.0,0.0002,120]
[408079537,1773116707867,1276.1,0.00014157,2]
[408079539,1773116856028,41546.85,0.0002,120]
[408079540,1773116968192,234.44,8.758e-05,2]
[408079541,1773116968373,234.44,9.219e-05,2]
[408079542,1773116968615,234.44,9.68e-05,2]
[408079543,1773116968825,234.44,0.00010141,2]
[408079544,1773116969020,234.44,0.00010602,2]
[408079545,1773116969220,234.44,0.00011063,2]
[408079546,1773116969412,234.44,0.00011524,2]
[408079547,1773116969621,234.44,0.00011985,2]
[408079548,1773116969857,234.44,0.00012446,2]
[408079549,1773116970186,234.44,0.00012907,2]
[408079550,1773116970252,234.44,0.00013368,2]
[408079551,1773116970455,234.44,0.00013829,2]
[408079559,1773117031792,-234.44,0.0001429,2]
[408079560,1773117031801,-234.44,0.00014751,2]
[408079561,1773117031811,-84.79370678,0.00015212,2]
[408079562,1773117031956,-149.64629322,0.00015212,2]
[408079563,1773117031966,-234.44,0.00015673,2]
[408079564,1773117031976,-1200.0,0.00015989,2]
[408079565,1773117031986,-500.0,0.0001599,2]
[408079566,1773117031995,-500.0,0.0001599,2]
[408079567,1773117032005,-252.67429512,0.0001599,2]
[408079568,1773117032015,-151.0,0.0001599,2]
[408079569,1773117032024,-151.0,0.0001599,2]
[408079570,1773117032034,-151.0,0.0001599,2]
[408079571,1773117032043,-151.0,0.0001599,2]
[408079572,1773117032053,-151.0,0.0001599,2]
[408079573,1773117032062,-151.0,0.0001599,2]
[408079574,1773117032071,-216.16485696,0.0001599,2]
[408079575,1773117032080,-500.0,0.0001599,2]
[408079576,1773117032090,-518.84676166,0.0001599,2]
[408079577,1773117032101,-9000.0,0.00016,2]
[408079578,1773117032110,-326.48476512,0.00016,5]
[408079579,1773117032119,-200.0,0.00016031,2]
[408079580,1773117032128,-234.44,0.00016134,2]
[408079581,1773117032138,-550.0,0.0001622,2]
[408079582,1773117032147,-1136.401395,0.00016221,7]
[408079583,1773117032156,-234.44,0.00016595,2]
[408079584,1773117032165,-478.305016,0.00016608,7]
[408079585,1773117032175,-154.717502,0.00016691,7]
[408079586,1773117032184,-223.164615,0.00016701,7]
[408079587,1773117032193,-301.179377,0.0001671,7]
[408079588,1773117032203,-9865.54131073,0.00016772,2]
[408079589,1773117032214,-504.0,0.00017,2]
[408079590,1773117032224,-234.44,0.00017055,2]
[408079591,1773117032233,-166.66,0.00017279,2]
[408079592,1773117032242,-297.0,0.00017339,2]
[408079593,1773117032253,-234.44,0.00017516,2]
[408079594,1773117032262,-500.0,0.00017526,2]
[408079595,1773117032271,-500.0,0.00017526,2]
[408079596,1773117032281,-500.0,0.00017526,2]
[408079597,1773117032291,-500.0,0.00017526,2]
[408079598,1773117032301,-500.0,0.00017526,2]
[408079599,1773117032310,-500.0,0.00017526,2]
[408079600,1773117032320,-500.0,0.00017526,2]
[408079601,1773117032329,-500.0,0.00017526,2]
[408079602,1773117032339,-1680.0,0.0001757,2]
[408079603,1773117032348,-2500.0,0.00017577,2]
[408079604,1773117032357,-2500.0,0.00017577,2]
[408079605,1773117032366,-2549.30110941,0.00017577,2]
[408079606,1773117032375,-600.0,0.00017577,2]
[408079607,1773117032384,-476.07802003,0.00017588,2]
[408079608,1773117032393,-5000.0,0.00017588,2]
[408079609,1773117032404,-2500.0,0.00017588,2]
[408079610,1773117032414,-1600.0,0.00017597,2]
[408079612,1773117032423,-166.66,0.00017643,2]
[408079616,1773117032727,-12185.97114731,0.00017729,2]
[408079617,1773117032756,-1554.65,0.00017794,2]
[408079618,1773117032765,-9728.39527393,0.00017813,2]
[408079619,1773117032774,-5000.0,0.00017813,2]
[408079620,1773117032783,-5000.0,0.00017813,2]
[408079621,1773117032791,-1500.0,0.0001782,2]
[408079622,1773117032800,-973.61,0.00017872,2]
[408079623,1773117032809,-200.0,0.00017872,2]
[408079624,1773117032818,-150.0,0.00017951,2]
[408079625,1773117032826,-889.15,0.00017956,2]
[408079626,1773117032836,-2027.56,0.00017973,2]
[408079627,1773117032845,-166.66,0.00018007,2]
[408079628,1773117032854,-1487.12242636,0.00018009,2]
[408079629,1773117032863,-973.61,0.00018319,2]
[408079630,1773117032872,-800.0,0.00018356,7]
[408079631,1773117032881,-600.0,0.00018356,7]
[408079632,1773117032890,-500.0,0.00018356,7]
[408079633,1773117032899,-166.66,0.00018371,2]
[408079634,1773117032908,-2834.0,0.000184,2]
[408079635,1773117032917,-1213.7,0.00018421,2]
[408079636,1773117032926,-900.0,0.00018428,2]
[408079637,1773117032935,-150.0,0.00018449,2]
[408079638,1773117032944,-1000.0,0.00018582,2]
[408079639,1773117032953,-500.0,0.00018584,2]
[408079640,1773117032962,-152.73,0.00018599,2]
[408079641,1773117032971,-2724.05,0.00018599,2]
[408079642,1773117032981,-2000.0,0.00018599,2]
[408079643,1773117032990,-152.0,0.0001871,3]
[408079644,1773117033000,-614.31,0.00018719,2]
[408079645,1773117033010,-166.66,0.00018734,2]
[408079646,1773117033019,-338.2,0.0001875,2]
[408079647,1773117033028,-500.0,0.0001875,2]
[408079648,1773117033037,-500.0,0.0001875,2]
[408079649,1773117033046,-500.0,0.0001875,2]
[408079650,1773117033056,-502.14275911,0.0001875,2]
[408079651,1773117033066,-500.0,0.0001875,2]
[408079652,1773117033075,-500.0,0.0001875,2]
[408079653,1773117033084,-500.0,0.0001875,2]
[408079654,1773117033094,-500.0,0.0001875,2]
[408079655,1773117033103,-973.61,0.00018766,2]
[408079656,1773117033112,-481.42,0.00018847,2]
[408079657,1773117033122,-481.41,0.00018847,2]
[408079658,1773117033132,-354.3,0.00018847,2]
[408079659,1773117033141,-4838.77113528,0.00018925,2]
[408079660,1773117033151,-1931.30566739,0.00018926,2]
[408079661,1773117033160,-151.500711,0.00018926,2]
[408079662,1773117033169,-799.26915761,0.00018926,2]
[408079663,1773117033178,-1000.0,0.00018926,2]
[408079664,1773117033187,-1377.42282659,0.00018926,2]
[408079665,1773117033196,-250.0,0.00018926,2]
[408079666,1773117033206,-250.0,0.00018926,2]
[408079667,1773117033219,-250.0,0.00018926,2]
[408079668,1773117033228,-250.0,0.00018926,2]
[408079669,1773117033237,-500.0,0.00018926,2]
[408079670,1773117033247,-250.0,0.00018926,2]
[408079671,1773117033256,-500.0,0.00018926,2]
[408079672,1773117033265,-250.0,0.00018926,2]
[408079673,1773117033274,-500.0,0.00018926,2]
[408079674,1773117033284,-250.0,0.00018926,2]
[408079675,1773117033294,-1500.0,0.00018926,2]
[408079676,1773117033303,-500.0,0.00018926,2]
[408079677,1773117033311,-250.0,0.00018926,2]
[408079678,1773117033321,-754.0050979,0.00018926,2]
[408079679,1773117033330,-250.0,0.00018926,2]
[408079680,1773117033338,-500.0,0.00018926,2]
[408079681,1773117033347,-250.0,0.00018926,2]
[408079682,1773117033356,-450.49424599,0.00018926,2]
[408079683,1773117033365,-256.39759143,0.00018926,2]
[408079684,1773117033373,-1500.0,0.00018926,2]
[408079685,1773117033382,-3000.0,0.00018926,2]
[408079686,1773117033392,-1500.0,0.00018926,2]
[408079687,1773117033401,-3000.0,0.00018926,2]
[408079688,1773117033410,-1500.0,0.00018926,2]
[408079689,1773117033420,-701.92734784,0.00018926,2]
[408079690,1773117034236,-2298.07265216,0.00018926,2]
[408079691,1773117034245,-1039.07534199,0.00018926,2]
[408079692,1773117034257,-460.92465801,0.00018926,2]
[408079693,1773117034266,-156.04278427,0.00018926,2]
[408079694,1773117034275,-95.78256272,0.00018926,2]
[408079695,1773117034294,-528.24124224,0.00018926,2]
[408079696,1773117038169,-166.66,0.00017405,2]
[408079697,1773117038178,-166.66,0.0001798,2]
[408079698,1773117038187,-13.81116499,0.00018554,2]
[408079826,1773117040460,-152.84883501,0.00018554,2]
[408079827,1773117040470,-875.97619504,0.00018926,2]
[408079828,1773117040480,-1500.0,0.00018926,2]
[408079829,1773117040489,-1500.0,0.00018926,2]
[408079830,1773117040499,-716.46661359,0.00018926,2]
[408079831,1773117040510,-151.0,0.00018926,2]
[408079832,1773117040519,-500.0,0.00018926,2]
[408079833,1773117040530,-10000.0,0.00018926,2]
[408079834,1773117040541,-7503.13469147,0.00018926,2]
[408079835,1773117040551,-1000.0,0.00018926,2]
[408079836,1773117040560,-250.0,0.00018926,2]
[408079837,1773117040570,-578.20924308,0.00018926,2]
[408079838,1773117040581,-773.73733787,0.00018926,2]
[408079839,1773117040590,-250.0,0.00018926,2]
[408079840,1773117040600,-250.0,0.00018926,2]
[408079841,1773117040610,-250.0,0.00018926,2]
[408079842,1773117040620,-250.0,0.00018926,2]
[408079843,1773117040629,-250.0,0.00018926,2]
[408079844,1773117040639,-174.61919141,0.00018926,2]
[408079845,1773117040648,-250.0,0.00018926,2]
[408079846,1773117040658,-200.0,0.00018926,2]
[408079847,1773117040667,-250.0,0.00018926,2]
[408079848,1773117040677,-743.50770149,0.00018926,2]
[408079849,1773117040687,-250.0,0.00018926,2]
[408079850,1773117040696,-266.11523531,0.00018926,2]
[408079851,1773117040705,-262.90206542,0.00018926,2]
[408079852,1773117040714,-1500.0,0.00018926,2]
[408079853,1773117040723,-1500.0,0.00018926,2]
[408079854,1773117040732,-1500.0,0.00018926,2]
[408079855,1773117040741,-1500.0,0.00018926,2]
[408079856,1773117040752,-1500.0,0.00018926,2]
[408079857,1773117040761,-1500.0,0.00018926,2]
[408079858,1773117040771,-1041.02516385,0.00018926,2]
[408079859,1773117040780,-668.65185757,0.00018926,2]
[408079860,1773117040789,-284.23461193,0.00018926,2]
[408079861,1773117040799,-150.0,0.00018948,2]
[408079862,1773117040808,-500.0,0.00018971,7]
[408079863,1773117040817,-500.0,0.00018971,7]
[408079864,1773117040827,-500.0,0.00018971,7]
[408079865,1773117040836,-500.0,0.00018971,7]
[408079866,1773117040845,-500.0,0.00018971,7]
[408079867,1773117040854,-500.0,0.00018971,7]
[408079868,1773117040863,-500.0,0.00018971,7]
[408079869,1773117040873,-500.0,0.00018971,7]
[408079870,1773117040882,-500.0,0.00018971,7]
[408079871,1773117040892,-500.0,0.00018971,7]
[408079872,1773117040901,-500.0,0.00018971,7]
[408079873,1773117040910,-526.12,0.00018971,7]
[408079874,1773117040920,-500.0,0.00018971,7]
[408079875,1773117040929,-500.0,0.00018971,7]
[408079876,1773117040939,-356.06,0.00018971,7]
[408079877,1773117040948,-200.0,0.0001898,2]
[408079878,1773117040957,-151.0,0.00018981,2]
[408079879,1773117040967,-481.42,0.00018999,2]
[408079880,1773117040976,-503.36461092,0.00019,5]
[408079881,1773117040986,-289.72714769,0.00019,60]
[408079882,1773117040995,-159.86865911,0.00019014,2]
[408079883,1773117041004,-151.0,0.00019036,2]
[408079884,1773117041013,-151.0,0.00019091,2]
[408079885,1773117041023,-166.66,0.00019098,2]
[408079886,1773117041033,-1975.97,0.00019106,2]
[408079887,1773117041042,-166.66,0.00019129,2]
[408079888,1773117041051,-288.79400444,0.00019146,2]
[408079889,1773117041060,-504.0,0.00019172,4]
[408079890,1773117041070,-787.0,0.00019178,2]
[408079891,1773117041080,-1000.0,0.00019178,2]
[408079892,1773117041089,-235.69610359,0.000192,5]
[408079893,1773117041100,-160.34163373,0.00019205,2]
[408079894,1773117041120,-160.34163372,0.00019205,2]
[408079895,1773117041138,-159.3956845,0.00019205,2]
[408079896,1773117041148,-159.86865911,0.00019205,2]
[408079897,1773117041158,-973.61,0.00019213,2]
[408079898,1773117041167,-481.41,0.00019228,2]
[408079899,1773117041177,-6753.0028,0.00019239,2]
[408079900,1773117041187,-25059.83,0.000193,8]
[408079901,1773117041196,-150.11,0.000193,8]
[408079902,1773117041206,-300.0,0.000193,7]
[408079903,1773117041220,-481.42,0.00019304,2]
[408079904,1773117041229,-2351.0,0.00019306,2]
[408079905,1773117041239,-500.0,0.00019313,2]
[408079906,1773117041249,-2009.56284127,0.00019313,2]
[408079907,1773117041259,-500.0,0.00019313,2]
[408079908,1773117041268,-6272.28,0.00019339,2]
[408079909,1773117041277,-18286.82,0.00019339,2]
[408079910,1773117041288,-2978.39,0.00019339,2]
[408079911,1773117041298,-150.99,0.00019339,2]
[408079912,1773117041307,-5320.51,0.00019339,2]
[408079913,1773117041317,-299.99,0.00019339,7]
[408079914,1773117041326,-9999.99,0.00019339,2]
[408079915,1773117041336,-350.42,0.00019339,2]
[408079916,1773117041346,-6583.3,0.00019339,2]
[408079917,1773117041355,-499.99,0.00019339,2]
[408079918,1773117041365,-560.02,0.00019339,2]
[408079919,1773117041375,-150.99,0.00019339,2]
[408079920,1773117041384,-11327.18,0.00019339,2]
[408079921,1773117041393,-1213.7,0.00019342,2]
[408079922,1773117041403,-756.0,0.00019376,2]
[408079923,1773117041412,-150.0,0.00019376,2]
[408079924,1773117041421,-150.0,0.00019376,2]
[408079925,1773117041430,-156.0,0.00019376,2]
[408079926,1773117041440,-600.0,0.000194,7]
[408079927,1773117041449,-150.0,0.00019421,2]
[408079928,1773117041457,-269.874613,0.00019423,2]
[408079929,1773117041467,-160.34163373,0.00019425,2]
[408079930,1773117041476,-160.34163372,0.00019425,2]
[408079931,1773117041485,-159.3956845,0.00019425,2]
[408079932,1773117041495,-159.86865911,0.00019425,2]
[408079933,1773117041504,-160.34163373,0.00019425,2]
[408079934,1773117041513,-169.9585,0.00019426,2]
[408079935,1773117041526,-763.1644,0.00019426,2]
[408079936,1773117041536,-2500.0,0.00019426,2]
[408079937,1773117041546,-215.25151446,0.0001943,2]
[408079938,1773117041556,-2301.63604078,0.00019432,2]
[408079939,1773117041566,-150.0,0.00019447,4]
[408079940,1773117041576,-172.91703981,0.00019447,2]
[408079941,1773117041586,-160.0,0.00019447,2]
[408079942,1773117041596,-800.0,0.00019452,7]
[408079943,1773117041605,-600.0,0.00019452,7]
[408079944,1773117041615,-500.0,0.00019452,7]
[408079945,1773117041624,-787.0,0.00019452,2]
[408079946,1773117041634,-1000.0,0.00019452,2]
[408079947,1773117041643,-481.42,0.00019457,2]
[408079948,1773117041653,-2130.752616,0.00019465,7]
[408079949,1773117041662,-500.0,0.00019473,2]
[408079950,1773117041672,-500.0,0.00019473,2]
[408079951,1773117041682,-1503.72110459,0.00019474,2]
[408079952,1773117041691,-1000.0,0.00019474,2]
[408079953,1773117041702,-181.08010149,0.00019474,2]
[408079954,1773117041711,-200.0,0.00019474,2]
[408079955,1773117041721,-771.01748645,0.00019474,2]
[408079956,1773117041730,-272.62944185,0.00019474,2]
[408079957,1773117041740,-693.3919763,0.00019474,2]
[408079958,1773117041750,-2301.63604069,0.00019481,2]
[408079959,1773117041759,-215.25151444,0.00019493,2]
[408079960,1773117041769,-500.0,0.00019499,2]
[408079961,1773117041778,-900.0,0.000195,7]
[408079962,1773117041788,-150.0,0.00019503,2]
[408079963,1773117041797,-500.0,0.00019503,2]
[408079964,1773117041807,-150.0,0.00019503,2]
[408079965,1773117041817,-500.0,0.00019503,2]
[408079966,1773117041827,-500.0,0.00019503,2]
[408079967,1773117041837,-204.83861542,0.00019503,2]
[408079968,1773117041846,-500.0,0.00019503,2]
[408079969,1773117041856,-500.0,0.00019503,2]
[408079970,1773117041865,-150.0,0.00019503,2]
[408079971,1773117041874,-151.19383815,0.00019503,2]
[408079972,1773117041883,-150.0,0.00019503,2]
[408079973,1773117041893,-150.51586392,0.00019503,2]
[408079974,1773117041902,-150.0,0.00019503,2]
[408079975,1773117041911,-500.0,0.00019503,2]
[408079976,1773117041921,-442049.8837,0.00019526,2]
[408079977,1773117041930,-2301.63604069,0.0001953,2]
[408079978,1773117041939,-5000.0,0.00019532,2]
[408079979,1773117041949,-210.540321,0.00019539,2]
[408079980,1773117041958,-350.0,0.0001954,2]
[408079981,1773117041967,-210.0,0.00019556,2]
[408079982,1773117041976,-215.25151444,0.00019556,2]
[408079983,1773117041986,-150.54749687,0.00019558,2]
[408079984,1773117041996,-501.77442938,0.00019558,2]
[408079985,1773117042005,-150.0,0.00019558,2]
[408079986,1773117042015,-500.0,0.00019558,2]
[408079987,1773117042024,-500.0,0.00019558,2]
[408079988,1773117042034,-500.0,0.00019558,2]
[408079989,1773117042043,-513.38232266,0.00019558,2]
[408079990,1773117042052,-231.17936295,0.00019558,2]
[408079991,1773117042062,-159.60904999,0.00019558,2]
[408079992,1773117042071,-508.22060755,0.00019558,2]
[408079993,1773117042081,-150.0,0.00019558,2]
[408079994,1773117042090,-2050.77477291,0.0001956,2]
[408079995,1773117042099,-879.19108021,0.00019572,2]
[408079996,1773117042109,-2301.63604069,0.00019579,2]
[408079997,1773117042118,-289.0,0.00019586,2]
[408079998,1773117042128,-515.97367444,0.00019599,2]
[408079999,1773117042137,-1200.0,0.000196,7]
[408080000,1773117042148,-481.41,0.00019609,2]
[408080001,1773117042158,-481.42455123,0.00019609,2]
[408080002,1773117042167,-481.41,0.00019609,2]
[408080003,1773117042177,-500.0,0.00019613,2]
[408080004,1773117042186,-160.61378813,0.00019613,2]
[408080005,1773117042195,-450.0,0.00019613,2]
[408080006,1773117042207,-150.0,0.00019613,2]
[408080007,1773117042218,-159.86865911,0.00019616,2]
[408080008,1773117042228,-215.25151444,0.00019619,2]
[408080009,1773117042237,-2301.63604069,0.00019628,2]
[408080010,1773117042246,-202.6939601,0.00019632,2]
[408080011,1773117042256,-151.0,0.00019632,2]
[408080012,1773117042265,-168.43846,0.00019632,2]
[408080013,1773117042275,-168.43846,0.00019632,2]
[408080014,1773117042284,-168.43846,0.00019632,2]
[408080015,1773117042294,-168.43846,0.00019632,2]
[408080016,1773117042303,-228.371361,0.00019632,2]
[408080017,1773117042313,-215.770622,0.00019632,2]
[408080018,1773117042323,-151.0,0.00019632,2]
[408080019,1773117042333,-151.0,0.00019632,2]
[408080020,1773117042342,-228.371361,0.00019632,2]
[408080021,1773117042353,-151.0,0.00019632,2]
[408080022,1773117042363,-228.371361,0.00019632,2]
[408080023,1773117042373,-151.0,0.00019632,2]
[408080024,1773117042382,-228.371361,0.00019632,2]
[408080025,1773117042391,-1006.974846,0.00019632,2]
[408080026,1773117042401,-1006.974846,0.00019632,2]
[408080027,1773117042412,-1006.974846,0.00019632,2]
[408080028,1773117042423,-1006.974846,0.00019632,2]
[408080029,1773117042433,-995.518115,0.00019632,2]
[408080030,1773117042444,-995.518115,0.00019632,2]
[408080031,1773117042453,-995.518115,0.00019632,2]
[408080032,1773117042463,-995.518115,0.00019632,2]
[408080033,1773117042472,-1308.367659,0.00019632,2]
[408080034,1773117042481,-1308.367659,0.00019632,2]
[408080035,1773117042490,-1308.367659,0.00019632,2]
[408080036,1773117042501,-1308.367659,0.00019632,2]
[408080037,1773117042510,-162.671328,0.00019632,2]
[408080038,1773117042521,-478.040006,0.00019632,2]
[408080039,1773117042530,-478.040006,0.00019632,2]
[408080040,1773117042539,-478.040006,0.00019632,2]
[408080041,1773117042549,-478.040006,0.00019632,2]
[408080042,1773117042558,-151.0,0.00019632,2]
[408080043,1773117042568,-151.0,0.00019632,2]
[408080044,1773117042578,-151.0,0.00019632,2]
[408080045,1773117042588,-151.0,0.00019632,2]
[408080046,1773117042597,-151.0,0.00019632,2]
[408080047,1773117042608,-151.0,0.00019632,2]
[408080049,1773117042617,-151.0,0.00019632,2]
[408080050,1773117042627,-151.0,0.00019632,2]
[408080051,1773117042638,-151.0,0.00019632,2]
[408080052,1773117042647,-258.11824,0.00019632,2]
[408080053,1773117042656,-152.757277,0.00019632,2]
[408080054,1773117042667,-258.11824,0.00019632,2]
[408080055,1773117042677,-151.0,0.00019632,2]
[408080056,1773117042687,-155.903725,0.00019632,2]
[408080057,1773117042698,-258.11824,0.00019632,2]
[408080058,1773117042707,-151.0,0.00019632,2]
[408080059,1773117042718,-258.11824,0.00019632,2]
[408080060,1773117042727,-374.525594,0.00019632,2]
[408080061,1773117042736,-374.525594,0.00019632,2]
[408080062,1773117042745,-374.525594,0.00019632,2]
[408080063,1773117042755,-452.017442,0.00019632,2]
[408080064,1773117042764,-374.525594,0.00019632,2]
[408080065,1773117042773,-785.879643,0.00019632,2]
[408080067,1773117042782,-452.017442,0.00019632,2]
[408080068,1773117042792,-766.976725,0.00019632,2]
[408080069,1773117042801,-452.017442,0.00019632,2]
[408080070,1773117042810,-508.14679428,0.00019632,2]
[408080071,1773117042825,-277.73284872,0.00019632,2]
[408080072,1773117042835,-766.976725,0.00019632,2]
[408080073,1773117042844,-452.017442,0.00019632,2]
[408080074,1773117042854,-785.879643,0.00019632,2]
[408080075,1773117042863,-517.901481,0.00019632,2]
[408080076,1773117042872,-785.879643,0.00019632,2]
[408080077,1773117042882,-766.976725,0.00019632,2]
[408080078,1773117042892,-517.901481,0.00019632,2]
[408080079,1773117042902,-766.976725,0.00019632,2]
[408080080,1773117042912,-517.901481,0.00019632,2]
[408080081,1773117042921,-517.901481,0.00019632,2]
[408080082,1773117042931,-883.894626,0.00019632,2]
[408080083,1773117042940,-883.894626,0.00019632,2]
[408080084,1773117042949,-151.0,0.00019632,2]
[408080085,1773117042959,-883.894626,0.00019632,2]
[408080086,1773117042968,-151.0,0.00019632,2]
[408080087,1773117042977,-151.0,0.00019632,2]
[408080088,1773117042986,-883.894626,0.00019632,2]
[408080089,1773117042995,-151.0,0.00019632,2]
[408080090,1773117043004,-151.0,0.00019632,2]
[408080091,1773117043014,-151.0,0.00019632,2]
[408080092,1773117043023,-151.0,0.00019632,2]
[408080093,1773117043032,-151.0,0.00019632,2]
[408080094,1773117043040,-165.133345,0.00019632,2]
[408080095,1773117043050,-2610.844344,0.00019632,2]
[408080096,1773117043060,-618.447518,0.00019632,2]
[408080097,1773117043069,-226.51216928,0.00019632,2]
[408080098,1773117043235,-168.998684,0.0001798,7]
[408080099,1773117043245,-2384.33217472,0.00019632,2]
[408080100,1773117043255,-618.447518,0.00019632,2]
[408080101,1773117043265,-76.11851603,0.00019632,2]
[408080102,1773117043276,-344.0,0.00019632,2]
[408080104,1773117045808,-2190.72582797,0.00019632,2]
[408080105,1773117045818,-151.0,0.00019632,2]
[408080106,1773117045827,-618.447518,0.00019632,2]
[408080107,1773117045837,-2610.844344,0.00019632,2]
[408080108,1773117045846,-151.0,0.00019632,2]
[408080109,1773117045856,-618.447518,0.00019632,2]
[408080110,1773117045865,-151.0,0.00019632,2]
[408080111,1773117045876,-729.464813,0.00019632,2]
[408080112,1773117045886,-729.464813,0.00019632,2]
[408080113,1773117045895,-729.464813,0.00019632,2]
[408080114,1773117045905,-151.0,0.00019632,2]
[408080115,1773117045914,-729.464813,0.00019632,2]
[408080116,1773117045925,-151.653669,0.00019632,2]
[408080117,1773117045935,-151.0,0.00019632,2]
[408080118,1773117045944,-151.0,0.00019632,2]
[408080119,1773117045956,-151.0,0.00019632,2]
[408080120,1773117045977,-151.0,0.00019632,2]
[408080121,1773117045987,-158.767557,0.00019632,2]
[408080122,1773117045996,-151.0,0.00019632,2]
[408080123,1773117046006,-151.0,0.00019632,2]
[408080124,1773117046016,-151.0,0.00019632,2]
[408080125,1773117046026,-151.0,0.00019632,2]
[408080126,1773117046036,-151.0,0.00019632,2]
[408080127,1773117046046,-151.0,0.00019632,2]
[408080128,1773117046055,-151.0,0.00019632,2]
[408080129,1773117046066,-151.0,0.00019632,2]
[408080130,1773117046077,-596.70784166,0.00019632,2]
[408080131,1773117046091,-192.53897134,0.00019632,2]
[408080133,1773117046101,-789.246813,0.00019632,2]
[408080134,1773117046112,-789.246813,0.00019632,2]
[408080135,1773117046121,-26394.84000803,0.00019632,2]
[408080136,1773117046136,-1222.0,0.00019632,2]
[408080137,1773117046149,-345715.31479197,0.00019632,2]
[408080138,1773117046158,-1000.0,0.00019632,2]
[408080139,1773117046168,-600.0,0.00019639,2]
[408080140,1773117046178,-500.0,0.00019644,2]
[408080141,1773117046188,-210.0,0.00019647,2]
[408080142,1773117046198,-210.0,0.00019647,2]